[Event "Satka Autumn 2018"]
[Site "Satka"]
[Date "2018.09.14"]
[Round "4"]
[White "Mironenko, Galina"]
[Black "Svetlova, Ksenia"]
[Result "1-0"]
[ECO "A52"]
[WhiteElo "2021"]
[BlackElo "1696"]
[Annotator "NA"]
[PlyCount "149"]
[EventDate "2018.09.11"]
[EventType "swiss"]
[EventCountry "RUS"]
[SourceTitle "playchess.com"]
[Source "ChessBase"]
[SourceQuality "1"]
[TimeControl "40/5400+30:1800+30"]

1. d4 {[%emt 0:00:00]} Nf6 {[%emt 0:00:00]} 2. c4 {[%emt 0:00:00]} e5 {[%emt 0:00:07]} 3. dxe5 {[%emt 0:00:00]} Ng4 {[%emt 0:00:02]} 4. Bf4 {[%emt 0:00:11]} Nc6 {[%emt 0:00:07]} 5. Nf3 {[%emt 0:00:06]} Bb4+ $1 {[%emt 0:00:05]} 6. Nbd2 {[%emt 0:00:05]} Qe7 {[%emt 0:00:16]} 7. e3 {[%emt 0:00:06]} Ngxe5 {[%emt 0:00:13]} 8. Nxe5 {[%emt 0:00:14]} Nxe5 {[%emt 0:00:07]} 9. Be2 {[%emt 0:00:08]} O-O {[%emt 0:01:13]} 10. O-O {[%emt 0:00:08]} Bxd2 {[%emt 0:02:32]} 11. Qxd2 {[%emt 0:00:07]} d6 {[%emt 0:00:31] LiveBook: 66 Games} 12. Rfd1 {[%emt 0:03:42]} Be6 {[%emt 0:01:25] A52: Budapest Gambit} (12... a5 $11 13. b3 b6 14. a3 Be6 15. Qc3 f6 16. b4 axb4 17. axb4 Bf7 18. Bg3 Qe6 19. c5 bxc5 20. bxc5 {½-½ (52) Ladva,O (2411)-Miezis,N (2508) Viljandi 2015}) 13. c5 {[%emt 0:07:14]} Rfd8 {[%emt 0:02:16]} 14. Qc3 {[%emt 0:09:54]} f6 $146 {[%emt 0:05:26]} ({Predecessor:} 14... Ng6 15. cxd6 cxd6 16. Bg3 Rac8 17. Qb4 d5 18. Qd4 Qc5 19. Qxc5 Rxc5 20. Rac1 {1-0 (41) Osorio Ramos,F (1834)-Calderon Martin,A (1679) Madrid 2016}) 15. cxd6 {[%emt 0:05:36]} cxd6 {[%emt 0:00:44]} 16. Qb4 {[%emt 0:02:16]} Rac8 {[%emt 0:05:09]} 17. Rd2 {[%emt 0:06:17]} Rc7 {[%emt 0:05:48]} 18. Rad1 {[%emt 0:02:07]} a6 {[%emt 0:13:03]} 19. h3 {[%emt 0:11:46]} Rcd7 {[%emt 0:05:09]} 20. Bg3 {[%emt 0:05:34]} Nc6 {[%emt 0:16:36]} 21. Qb6 {[%emt 0:04:24]} d5 {[%emt 0:09:36]} 22. Bxa6 {[%emt 0:04:58]} Ne5 {[%emt 0:07:08]} 23. Be2 {[%emt 0:03:50]} Rc8 {[%emt 0:08:30]} (23... Nc4 $16 24. Bxc4 dxc4) 24. Qd4 {[%emt 0:06:20]} Bf7 {[%emt 0:04:02]} 25. Qa4 {[%emt 0:06:00]} Rdc7 {[%emt 0:02:16]} 26. b3 {[%emt 0:06:07]} Rc5 {[%emt 0:05:03]} 27. Bg4 {[%emt 0:03:33]} b5 {[%emt 0:01:14]} 28. Qd4 {[%emt 0:01:20]} Ra8 {[%emt 0:02:54]} 29. Bxe5 {[%emt 0:03:16]} fxe5 {[%emt 0:00:14]} 30. Qb4 {[%emt 0:01:51]} Qc7 {[%emt 0:00:07]} 31. Bf3 {[%emt 0:00:41]} e4 {[%emt 0:02:37]} 32. Be2 {[%emt 0:00:11]} Rb8 {[%emt 0:00:31]} 33. f3 {[%emt 0:02:29]} Rc2 {[%emt 0:00:36]} 34. fxe4 {[%emt 0:00:49]} Rxd2 {[%emt 0:00:36]} 35. Qxd2 {[%emt 0:01:12]} dxe4 {[%emt 0:00:10]} 36. Bxb5 {[%emt 0:01:45]} Bxb3 {[%emt 0:00:18]} 37. Rc1 {[%emt 0:02:42]} Qb6 {[%emt 0:01:02]} 38. Bc4+ {[%emt 0:01:10]} Bxc4 {[%emt 0:00:04]} 39. Rxc4 {[%emt 0:00:04]} Qb1+ {[%emt 0:00:15]} 40. Kh2 {[%emt 0:00:00]} Qd3 {[%emt 0:00:00]} 41. Rd4 {[%emt 0:04:08]} Qxd2 {[%emt 0:00:57]} 42. Rxd2 {[%emt 0:00:05]} Ra8 {[%emt 0:00:02]} 43. Kg3 {[%emt 0:00:44]} Kf7 {[%emt 0:00:09]} 44. Kf4 {[%emt 0:00:16]} Ra4 {[%emt 0:00:04]} 45. Ke5 {[%emt 0:00:33]} Ke7 {[%emt 0:00:41]} 46. Kd5 {[%emt 0:01:41]} Kf6 {[%emt 0:00:32]} 47. Kc5 {[%emt 0:03:06]} Ke5 {[%emt 0:00:50]} 48. Kb5 {[%emt 0:01:10]} Ra3 {[%emt 0:03:41]} 49. Re2 {[%emt 0:00:33]} h5 {[%emt 0:03:23]} 50. Kb4 {[%emt 0:00:10]} Rd3 {[%emt 0:00:05]} 51. a4 {[%emt 0:00:55]} Kd5 {[%emt 0:01:36]} 52. a5 {[%emt 0:00:21]} Rd1 {[%emt 0:01:30]} 53. Rb2 {[%emt 0:03:56]} Ra1 {[%emt 0:05:37]} 54. Kb5 {[%emt 0:02:23]} Ra3 {[%emt 0:00:12]} 55. Rd2+ {[%emt 0:05:34]} Ke5 {[%emt 0:01:02]} 56. Re2 {[%emt 0:00:08]} Kd5 {[%emt 0:00:08]} 57. Kb4 {[%emt 0:00:53]} Ra1 {[%emt 0:00:57]} 58. Rd2+ {[%emt 0:00:37]} Ke5 {[%emt 0:01:57]} 59. Kb5 {[%emt 0:00:19]} Ra3 {[%emt 0:07:28]} 60. Re2 {[%emt 0:00:21]} Kd5 {[%emt 0:02:42]} 61. a6 {[%emt 0:01:04]} Rb3+ {[%emt 0:01:06]} 62. Ka4 {[%emt 0:00:16]} Rb1 {[%emt 0:00:22]} 63. Rc2 {[%emt 0:01:47]} Ra1+ {[%emt 0:03:46]} 64. Kb5 {[%emt 0:00:08]} Rb1+ {[%emt 0:00:36]} 65. Ka5 {[%emt 0:00:07]} Ra1+ {[%emt 0:00:19]} 66. Kb6 {[%emt 0:00:11]} Rb1+ {[%emt 0:00:03]} 67. Kc7 {[%emt 0:00:19]} Ra1 {[%emt 0:00:15]} 68. Rc6 {[%emt 0:01:47]} Ra3 $18 {[%emt 0:03:01]} 69. Kb7 {[%emt 0:00:13]} Rxe3 {[%emt 0:02:34]} 70. a7 {[%emt 0:00:13]} Rb3+ {[%emt 0:00:16]} 71. Rb6 {[%emt 0:00:10]} Ra3 {[%emt 0:00:21]} 72. Ra6 {[%emt 0:00:08]} Rxa6 {[%emt 0:00:34]} 73. Kxa6 {[%emt 0:00:06]} Kd4 {[%emt 0:00:03]} 74. a8=Q {[%emt 0:00:10]} e3 {[%emt 0:00:19]} 75. Qf3 {[%emt 0:00:08] Kd5 [%clk 0:01:47]} 1-0

[Event "Satka Autumn 2018"]
[Site "Satka"]
[Date "2018.09.14"]
[Round "4"]
[White "Stroganova, Karina"]
[Black "Sosnina, Ekaterina"]
[Result "1-0"]
[ECO "B21"]
[WhiteElo "1711"]
[BlackElo "1955"]
[Annotator "NA"]
[PlyCount "77"]
[EventDate "2018.09.11"]
[EventType "swiss"]
[EventCountry "RUS"]
[SourceTitle "playchess.com"]
[Source "ChessBase"]
[SourceQuality "1"]
[TimeControl "40/5400+30:1800+30"]

1. e4 {[%emt 0:00:00]} c5 {[%emt 0:00:03]} 2. d4 {[%emt 0:00:36]} cxd4 {[%emt 0:00:13]} 3. c3 {[%emt 0:00:05]} Nc6 {[%emt 0:01:44]} 4. cxd4 {[%emt 0:01:37]} d5 {[%emt 0:00:10]} 5. exd5 {[%emt 0:14:09]} Qxd5 {[%emt 0:00:35]} 6. Nf3 {[%emt 0:00:15] LiveBook: 466 Games} Bg4 {[%emt 0:06:09]} 7. Nc3 {[%emt 0:00:37]} Qf5 {[%emt 0:00:10]} (7... Bxf3 $1 $14 8. Nxd5 Bxd1 9. Nc7+ (9. Kxd1 O-O-O $17) 9... Kd8 10. Nxa8 Bh5) 8. Be2 {[%emt 0:45:05]} (8. d5 $18 Bxf3 9. gxf3) 8... Rd8 {[%emt 0:14:16]} 9. Qa4 {[%emt 0:03:19]} Nf6 {[%emt 0:17:55]} 10. Be3 {[%emt 0:01:59]} e6 {[%emt 0:01:56]} 11. Ne5 {[%emt 0:02:27]} Bxe2 {[%emt 0:06:44]} 12. Nxc6 {[%emt 0:01:52]} bxc6 {[%emt 0:00:06]} 13. Qxc6+ {[%emt 0:00:13]} Nd7 {[%emt 0:00:05]} 14. Nxe2 $14 {[%emt 0:01:47]} Bb4+ {[%emt 0:12:12]} 15. Nc3 {[%emt 0:00:12]} O-O {[%emt 0:00:10]} 16. O-O {[%emt 0:00:55]} Nb6 {[%emt 0:00:03]} 17. a3 {[%emt 0:01:18]} Rc8 {[%emt 0:03:03]} 18. Qb7 {[%emt 0:00:58]} Bxc3 {[%emt 0:00:22]} 19. bxc3 {[%emt 0:00:11]} Qa5 {[%emt 0:00:04]} 20. Bf4 {[%emt 0:03:07]} Nd5 {[%emt 0:03:49]} 21. Bd6 {[%emt 0:01:07]} Rfd8 {[%emt 0:00:09]} 22. Bb4 {[%emt 0:00:25]} Qa4 {[%emt 0:00:05]} 23. Bc5 {[%emt 0:01:02]} a5 {[%emt 0:10:49]} 24. Rfc1 {[%emt 0:01:00]} Qc4 {[%emt 0:01:55]} 25. Qb2 {[%emt 0:02:17]} Rb8 {[%emt 0:00:21]} 26. Qd2 {[%emt 0:01:59]} Rb3 {[%emt 0:00:33]} 27. Rc2 {[%emt 0:06:47]} Rxc3 {[%emt 0:10:11]} 28. Rxc3 {[%emt 0:00:59]} Nxc3 {[%emt 0:00:14]} 29. Bb6 {[%emt 0:01:24]} Rd5 {[%emt 0:04:18]} 30. Qe1 {[%emt 0:05:05]} Rb5 {[%emt 0:04:24]} 31. Ba7 {[%emt 0:01:08]} Rb7 {[%emt 0:01:25]} 32. Bc5 {[%emt 0:00:07]} Ne2+ {[%emt 0:00:14]} 33. Kh1 {[%emt 0:00:05]} Nxd4 {[%emt 0:00:06]} 34. Rc1 {[%emt 0:00:24]} Nc2 {[%emt 0:00:47]} 35. Qxa5 {[%emt 0:00:17]} h6 {[%emt 0:00:23]} 36. Qa8+ {[%emt 0:00:10]} Kh7 {[%emt 0:00:14]} 37. Qxb7 {[%emt 0:00:19]} Qxc5 {[%emt 0:00:05]} 38. Qe4+ {[%emt 0:00:07]} Kg8 {[%emt 0:00:15]} 39. Rxc2 {[%emt 0:00:21]} 1-0

[Event "Satka Autumn 2018"]
[Site "Satka"]
[Date "2018.09.14"]
[Round "4"]
[White "Mirgalina, Anna"]
[Black "Nosacheva, Mariya"]
[Result "0-1"]
[ECO "A10"]
[WhiteElo "1339"]
[BlackElo "2073"]
[Annotator "NA RC"]
[PlyCount "74"]
[EventDate "2018.09.11"]
[EventType "swiss"]
[EventCountry "RUS"]
[SourceTitle "playchess.com"]
[Source "ChessBase"]
[SourceQuality "1"]
[TimeControl "40/5400+30:1800+30"]

{[%evp 8,74,9,1,-5,-10,0,-2,13,0,0,3,0,-4,-2,-11,-10,-37,-12,-28,-29,-48,-35,-66,-70,-71,-60,-59,-67,-66,-67,-54,-66,-71,-60,-60,-70,-88,-56,-54,-60,-70,-23,-98,-87,-93,-94,-106,-135,-133,-120,-141,-134,-155,-156,-263,-254,-269,-250,-310,-285,-433,-466,-1002,-725,-741,-812,-780,-696]} 1. c4 {[%emt 0:00:00]} g6 {[%emt 0:00:00]} 2. g3 {[%emt 0:00:06]} Bg7 {[%emt 0:00:00]} 3. Bg2 {[%emt 0:00:07]} e5 {[%emt 0:00:09]} 4. Nc3 {[%emt 0:00:13]} d6 {[%emt 0:00:43]} 5. Nf3 {[%emt 0:00:36] LiveBook: 416 Games} Nc6 {[%emt 0:01:04]} 6. d3 {[%emt 0:00:34]} f5 {[%emt 0:00:48]} 7. a3 {[%emt 0:02:57] A26: English Opening vs King's Indian with ...Nc6 and d3} (7. O-O Nf6 8. Rb1 O-O 9. b4 h6 10. b5 Ne7 11. a4 Be6 12. a5 Rc8 13. Nd2 b6 14. Bb2 g5 15. axb6 axb6 16. e3 Qd7 17. f4 Ng6 18. Nd5 Ng4 19. h3 Nf6 {0-1 (51) Eljanov,P (2742)-Radjabov,T (2744) Moscow 2010}) 7... a5 {[%emt 0:01:11]} 8. Bd2 {[%emt 0:01:30]} Nf6 {[%emt 0:01:10]} 9. O-O {[%emt 0:02:04]} O-O {[%emt 0:00:16]} 10. e3 $146 {[%emt 0:02:54]} ({Predecessor:} 10. Qc1 Ne7 11. Bh6 c6 12. Bxg7 Kxg7 13. e4 h6 14. Re1 g5 15. Nxg5 hxg5 16. Qxg5+ {0-1 (40) Perez Rodriguez,L (2432)-Marull Teixidor,M (2106) Figueres 2004}) 10... h6 {[%emt 0:00:55]} 11. Ne1 {[%emt 0:01:43]} Be6 {[%emt 0:01:09]} 12. Nc2 {[%emt 0:02:24]} Rb8 {[%emt 0:01:42]} 13. f4 {[%emt 0:04:37]} d5 {[%emt 0:06:29]} 14. cxd5 {[%emt 0:02:28]} Nxd5 {[%emt 0:00:18]} 15. Nxd5 {[%emt 0:03:39]} Bxd5 {[%emt 0:00:09]} 16. Bc3 {[%emt 0:03:29]} Bxg2 {[%emt 0:01:51]} 17. Kxg2 {[%emt 0:00:59]} Qd5+ {[%emt 0:00:10]} 18. Kg1 {[%emt 0:00:49]} Rbd8 {[%emt 0:00:14]} 19. Ne1 $1 {[%emt 0:00:45]} Rfe8 {[%emt 0:00:40]} 20. Qd2 {[%emt 0:00:42]} Kh7 {[%emt 0:06:23]} 21. Rd1 {[%emt 0:00:35]} Qc5 {[%emt 0:09:49]} 22. Ng2 {[%emt 0:01:11]} Rd7 {[%emt 0:01:41]} 23. fxe5 {[%emt 0:00:41]} Nxe5 {[%emt 0:00:58]} 24. d4 {[%emt 0:00:48]} Qb5 {[%emt 0:02:21]} 25. Qc2 {[%emt 0:02:05]} Ng4 {[%emt 0:01:34]} 26. Rfe1 {[%emt 0:00:34]} Re4 {[%emt 0:03:15]} 27. Re2 {[%emt 0:02:53]} Rde7 {[%emt 0:01:28]} 28. Rde1 {[%emt 0:00:22]} h5 {[%emt 0:02:10]} 29. Qd2 {[%emt 0:01:03]} b6 {[%emt 0:00:28]} 30. Qc1 {[%emt 0:00:28]} Qe8 {[%emt 0:04:49]} 31. Bd2 {[%emt 0:00:59] [#]} (31. Kh1 $17 {was called for.}) 31... Bxd4 $1 {[%emt 0:00:50]} 32. h3 {[%emt 0:01:46]} Nf6 {[%emt 0:04:24]} 33. Nf4 {[%emt 0:01:49]} Bc5 {[%emt 0:00:55]} 34. Bc3 {[%emt 0:00:23]} (34. Qc2 {might work better.}) 34... Rxe3 {[%emt 0:01:21]} 35. Kf1 {[%emt 0:01:51]} (35. Rxe3 $142 Bxe3+ 36. Rxe3 Rxe3 37. Ng2) 35... Rxe2 {[%emt 0:04:20]} 36. Rxe2 {[%emt 0:00:33]} Rxe2 {[%emt 0:01:32]} 37. Nxe2 {[%emt 0:00:05]} Qe4 $19 {[%emt 0:00:44]} 0-1

[Event "Satka Autumn 2018"]
[Site "Satka"]
[Date "2018.09.14"]
[Round "4"]
[White "Mysova, Svetlana"]
[Black "Simakova, Elena"]
[Result "0-1"]
[ECO "A43"]
[WhiteElo "1017"]
[BlackElo "1935"]
[Annotator "NA RC"]
[PlyCount "46"]
[EventDate "2018.09.11"]
[EventType "swiss"]
[EventCountry "RUS"]
[SourceTitle "playchess.com"]
[Source "ChessBase"]
[SourceQuality "1"]
[TimeControl "40/5400+30:1800+30"]

{[%evp 8,46,-6,-20,14,10,14,-120,-135,-463,-119,-129,-122,-101,-118,-127,-101,-147,-120,-114,-132,-141,-129,-143,-137,-144,-118,-120,-129,-197,-161,-384,-407,-381,-226,-850,-464,-1014,-796,-29989,-29990]} 1. d4 {[%emt 0:00:00]} c5 {[%emt 0:00:00]} 2. c4 {[%emt 0:00:03]} cxd4 {[%emt 0:00:30] A30: Symmetrical English: Double Fianchetto and Hedgehog} (2... e6 3. d5 exd5 4. cxd5 d6 5. Nc3 Ne7 6. Nf3 Ng6 7. g3 Be7 8. Bg2 O-O 9. O-O Re8 10. Nd2 f5 11. e3 Nd7 12. Qc2 Nde5 13. Re1 Bf6 {½-½ (39) Oms Pallisse,J (2522)-Narciso Dublan,M (2534) Lleida 2009}) 3. Qxd4 {[%emt 0:00:13]} Nc6 {[%emt 0:00:12]} 4. Qd1 {[%emt 0:00:18]} Nf6 {[%emt 0:01:40]} 5. Nf3 {[%emt 0:01:11]} g6 {[%emt 0:05:17]} 6. e3 {[%emt 0:00:27]} Bg7 {[%emt 0:00:09]} 7. b3 $146 {[%emt 0:01:46]} (7. Nc3 $11 {remains equal.}) ({Predecessor:} 7. Be2 O-O 8. O-O d6 9. Nd4 Bd7 10. b3 a6 11. Nxc6 Bxc6 12. Bb2 {0-1 (42) Kizatbay,A (1952)-Ranaldi,L (2269) Stavanger 2017}) 7... Ne4 {[%emt 0:01:47]} 8. Bd3 $2 {[%emt 0:02:27]} (8. Nd4 $17 {nothing else works.}) 8... Bxa1 $2 {[%emt 0:02:44]} (8... Nc5 $19 {bietet bessere Gewinnchancen.} 9. Nd4 Nxd4 10. exd4 Bxd4 11. Bxg6 Bxa1 12. Bxf7+ Kxf7 13. Qh5+ Kg8 14. Qxc5 {[#]} d5 $1 {[%mdl 512]}) 9. Bxe4 {[%emt 0:00:08]} Bg7 {[%emt 0:00:30]} 10. O-O {[%emt 0:01:27]} O-O {[%emt 0:00:35]} 11. Qc2 {[%emt 0:01:17]} d6 {[%emt 0:04:32]} 12. Bb2 {[%emt 0:02:27]} Nb4 {[%emt 0:04:31]} 13. Qe2 {[%emt 0:00:56]} Bxb2 {[%emt 0:01:24]} 14. Qxb2 {[%emt 0:00:14]} f5 {[%emt 0:01:06]} 15. Bc2 {[%emt 0:01:34]} Nxc2 {[%emt 0:00:54]} 16. Qxc2 {[%emt 0:00:19]} Bd7 {[%emt 0:05:40]} 17. Nc3 {[%emt 0:01:35]} Rc8 {[%emt 0:01:07]} 18. Rc1 {[%emt 0:00:32]} (18. Qd3 $17) 18... Bc6 {[%emt 0:07:58]} 19. b4 $2 {[%emt 0:01:27]} (19. Qe2) 19... Bxf3 {[%emt 0:02:04]} 20. gxf3 {[%emt 0:00:12]} e6 {[%emt 0:01:56]} 21. e4 $2 {[%emt 0:05:20]} (21. Qb3) 21... fxe4 {[%emt 0:03:41]} 22. fxe4 {[%emt 0:02:14]} (22. Nxe4 $142 d5 23. Nc5) 22... Rxc4 {[%emt 0:03:10]} 23. Qb3 {[%emt 0:01:15]} Qg5+ {[%emt 0:00:20]} 0-1